Workbook

Sheet Planilha1
A3: N° do Item | B3: Tipo de Item | C3: Item | D3: Unidade de Fornecimento | E3: Valor Unitário Estimado (R$) | F3: UASG | G3: Município/UF de Entrega | H3: Qtde. | I3: Valor total Estimado (R$)
A4: 1 | B4: Material | C4: 41629-Estabilizador tensão | D4: Unidade | E4: 396.49 | F4: 160058 - 32 GRUPO DE ARTILHARIA DE CAMPANHA-MEX/DF | G4: BRASÍLIA/DF | H4: 5 | I4: =E4*H4 -> 1982.45
F5: 195006 - CIA DE DESENV. DO VALE DO SAO FRANCISCO-DF | G5: BRASÍLIA/DF | H5: 180 | I5: =E4*H5 -> 71368.2
A6: 2 | B6: Material | C6: 231995-Estabilizador tensão | D6: Unidade | E6: 151.57 | F6: 160058 - 32 GRUPO DE ARTILHARIA DE CAMPANHA-MEX/DF | G6: BRASÍLIA/DF | H6: 5 | I6: =E6*H6 -> 757.85
F7: 160083 - ESTABELC.GEN GUSTAVO CORDEIRO FARIAS-MEX-DF | G7: BRASÍLIA/DF | H7: 10 | I7: =E6*H7 -> 1515.7
F8: 195006 - CIA DE DESENV. DO VALE DO SAO FRANCISCO-DF | G8: BRASÍLIA/DF | H8: 180 | I8: =E6*H8 -> 27282.6
A9: 3 | B9: Material | C9: 331262-Estabilizador tensão | D9: Unidade | E9: 368.97 | F9: 160058 - 32 GRUPO DE ARTILHARIA DE CAMPANHA-MEX/DF | G9: BRASÍLIA/DF | H9: 5 | I9: =E9*H9 -> 1844.85
F10: 160083 - ESTABELC.GEN GUSTAVO CORDEIRO FARIAS-MEX-DF | G10: BRASÍLIA/DF | H10: 4 | I10: =E9*H10 -> 1475.88
F11: 195006 - CIA DE DESENV. DO VALE DO SAO FRANCISCO-DF | G11: BRASÍLIA/DF | H11: 50 | I11: =E9*H11 -> 18448.5
A12: 4 | B12: Material | C12: 429945-Válvula descarga | D12: Unidade | E12: 521.4 | F12: 160058 - 32 GRUPO DE ARTILHARIA DE CAMPANHA-MEX/DF | G12: BRASÍLIA/DF | H12: 10 | I12: =E12*H12 -> 5214
F13: 195006 - CIA DE DESENV. DO VALE DO SAO FRANCISCO-DF | G13: BRASÍLIA/DF | H13: 30 | I13: =E12*H13 -> 15642
A14: 5 | B14: Material | C14: 411269-Acessório canaleta | D14: Unidade | E14: 9.59 | F14: 160058 - 32 GRUPO DE ARTILHARIA DE CAMPANHA-MEX/DF | G14: BRASÍLIA/DF | H14: 100 | I14: =E14*H14 -> 959
F15: 160083 - ESTABELC.GEN GUSTAVO CORDEIRO FARIAS-MEX-DF | G15: BRASÍLIA/DF | H15: 50 | I15: =E14*H15 -> 479.5
F16: 195006 - CIA DE DESENV. DO VALE DO SAO FRANCISCO-DF | G16: BRASÍLIA/DF | H16: 200 | I16: =E14*H16 -> 1918
A17: 6 | B17: Material | C17: 376467-Adaptador | D17: Unidade | E17: 4.57 | F17: 160058 - 32 GRUPO DE ARTILHARIA DE CAMPANHA-MEX/DF | G17: BRASÍLIA/DF | H17: 200 | I17: =E17*H17 -> 914
F18: 160083 - ESTABELC.GEN GUSTAVO CORDEIRO FARIAS-MEX-DF | G18: BRASÍLIA/DF | H18: 30 | I18: =E17*H18 -> 137.1
F19: 195006 - CIA DE DESENV. DO VALE DO SAO FRANCISCO-DF | G19: BRASÍLIA/DF | H19: 240 | I19: =E17*H19 -> 1096.8
A20: 7 | B20: Material | C20: 395739-Adaptador | D20: Unidade | E20: 10.22 | F20: 160058 - 32 GRUPO DE ARTILHARIA DE CAMPANHA-MEX/DF | G20: BRASÍLIA/DF | H20: 200 | I20: =E20*H20 -> 2044
F21: 195006 - CIA DE DESENV. DO VALE DO SAO FRANCISCO-DF | G21: BRASÍLIA/DF | H21: 240 | I21: =E20*H21 -> 2452.8
A22: 8 | B22: Material | C22: 243116-Caixa passagem | D22: Unidade | E22: 2.25 | F22: 160058 - 32 GRUPO DE ARTILHARIA DE CAMPANHA-MEX/DF | G22: BRASÍLIA/DF | H22: 200 | I22: =E22*H22 -> 450
F23: 160083 - ESTABELC.GEN GUSTAVO CORDEIRO FARIAS-MEX-DF | G23: BRASÍLIA/DF | H23: 50 | I23: =E22*H23 -> 112.5
F24: 160091 - CENTRO INTEGRADO DE TELEMATICA DO EXERCITO | G24: BRASÍLIA/DF | H24: 20 | I24: =E22*H24 -> 45
F25: 195006 - CIA DE DESENV. DO VALE DO SAO FRANCISCO-DF | G25: BRASÍLIA/DF | H25: 144 | I25: =E22*H25 -> 324
A26: 9 | B26: Material | C26: 288845-Canaleta | D26: Unidade | E26: 4.95 | F26: 160058 - 32 GRUPO DE ARTILHARIA DE CAMPANHA-MEX/DF | G26: BRASÍLIA/DF | H26: 200 | I26: =E26*H26 -> 990
F27: 195006 - CIA DE DESENV. DO VALE DO SAO FRANCISCO-DF | G27: BRASÍLIA/DF | H27: 500 | I27: =E26*H27 -> 2475
A28: 10 | B28: Material | C28: 333941-Canaleta | D28: Unidade | E28: 24.26 | F28: 160058 - 32 GRUPO DE ARTILHARIA DE CAMPANHA-MEX/DF | G28: BRASÍLIA/DF | H28: 200 | I28: =E28*H28 -> 4852
F29: 195006 - CIA DE DESENV. DO VALE DO SAO FRANCISCO-DF | G29: BRASÍLIA/DF | H29: 250 | I29: =E28*H29 -> 6065
A30: 11 | B30: Material | C30: 430915-Canaleta | D30: Unidade | E30: 24.96 | F30: 160058 - 32 GRUPO DE ARTILHARIA DE CAMPANHA-MEX/DF | G30: BRASÍLIA/DF | H30: 200 | I30: =E30*H30 -> 4992
F31: 195006 - CIA DE DESENV. DO VALE DO SAO FRANCISCO-DF | G31: BRASÍLIA/DF | H31: 100 | I31: =E30*H31 -> 2496
A32: 12 | B32: Material | C32: 389689-Canaleta | D32: Unidade | E32: 22.56 | F32: 160058 - 32 GRUPO DE ARTILHARIA DE CAMPANHA-MEX/DF | G32: BRASÍLIA/DF | H32: 300 | I32: =E32*H32 -> 6768
F33: 195006 - CIA DE DESENV. DO VALE DO SAO FRANCISCO-DF | G33: BRASÍLIA/DF | H33: 100 | I33: =E32*H33 -> 2256
A34: 13 | B34: Material | C34: 428548-Acessório canaleta | D34: Unidade | E34: 1.79 | F34: 160058 - 32 GRUPO DE ARTILHARIA DE CAMPANHA-MEX/DF | G34: BRASÍLIA/DF | H34: 300 | I34: =E34*H34 -> 537
F35: 195006 - CIA DE DESENV. DO VALE DO SAO FRANCISCO-DF | G35: BRASÍLIA/DF | H35: 250 | I35: =E34*H35 -> 447.5
A36: 14 | B36: Material | C36: 380225-Acessório canaleta | D36: Unidade | E36: 2.25 | F36: 160058 - 32 GRUPO DE ARTILHARIA DE CAMPANHA-MEX/DF | G36: BRASÍLIA/DF | H36: 300 | I36: =E36*H36 -> 675
F37: 195006 - CIA DE DESENV. DO VALE DO SAO FRANCISCO-DF | G37: BRASÍLIA/DF | H37: 250 | I37: =E36*H37 -> 562.5
A38: 15 | B38: Material | C38: 231487-Derivação | D38: Unidade | E38: 4.49 | F38: 160058 - 32 GRUPO DE ARTILHARIA DE CAMPANHA-MEX/DF | G38: BRASÍLIA/DF | H38: 300 | I38: =E38*H38 -> 1347
F39: 195006 - CIA DE DESENV. DO VALE DO SAO FRANCISCO-DF | G39: BRASÍLIA/DF | H39: 200 | I39: =E38*H39 -> 898
A40: 16 | B40: Material | C40: 344875-Acessório canaleta | D40: Unidade | E40: 0.98 | F40: 160058 - 32 GRUPO DE ARTILHARIA DE CAMPANHA-MEX/DF | G40: BRASÍLIA/DF | H40: 300 | I40: =E40*H40 -> 294
F41: 195006 - CIA DE DESENV. DO VALE DO SAO FRANCISCO-DF | G41: BRASÍLIA/DF | H41: 200 | I41: =E40*H41 -> 196
A42: 17 | B42: Material | C42: 244029-Tampão condulete | D42: Unidade | E42: 2.65 | F42: 160058 - 32 GRUPO DE ARTILHARIA DE CAMPANHA-MEX/DF | G42: BRASÍLIA/DF | H42: 300 | I42: =E42*H42 -> 795
F43: 195006 - CIA DE DESENV. DO VALE DO SAO FRANCISCO-DF | G43: BRASÍLIA/DF | H43: 100 | I43: =E42*H43 -> 265
A44: 18 | B44: Material | C44: 313047-Fita isolante elétrica | D44: Unidade | E44: 8.02 | F44: 160058 - 32 GRUPO DE ARTILHARIA DE CAMPANHA-MEX/DF | G44: BRASÍLIA/DF | H44: 150 | I44: =E44*H44 -> 1203
F45: 160083 - ESTABELC.GEN GUSTAVO CORDEIRO FARIAS-MEX-DF | G45: BRASÍLIA/DF | H45: 50 | I45: =E44*H45 -> 401
F46: 160091 - CENTRO INTEGRADO DE TELEMATICA DO EXERCITO | G46: BRASÍLIA/DF | H46: 100 | I46: =E44*H46 -> 802
F47: 195006 - CIA DE DESENV. DO VALE DO SAO FRANCISCO-DF | G47: BRASÍLIA/DF | H47: 250 | I47: =E44*H47 -> 2005
A48: 19 | B48: Material | C48: 355316-Interruptor | D48: Unidade | E48: 16.44 | F48: 160058 - 32 GRUPO DE ARTILHARIA DE CAMPANHA-MEX/DF | G48: BRASÍLIA/DF | H48: 150 | I48: =E48*H48 -> 2466
F49: 160083 - ESTABELC.GEN GUSTAVO CORDEIRO FARIAS-MEX-DF | G49: BRASÍLIA/DF | H49: 10 | I49: =E48*H49 -> 164.4
F50: 160091 - CENTRO INTEGRADO DE TELEMATICA DO EXERCITO | G50: BRASÍLIA/DF | H50: 10 | I50: =E48*H50 -> 164.4
F51: 195006 - CIA DE DESENV. DO VALE DO SAO FRANCISCO-DF | G51: BRASÍLIA/DF | H51: 20 | I51: =E48*H51 -> 328.8
A52: 20 | B52: Material | C52: 337065-Interruptor | D52: Unidade | E52: 21.17 | F52: 160058 - 32 GRUPO DE ARTILHARIA DE CAMPANHA-MEX/DF | G52: BRASÍLIA/DF | H52: 150 | I52: =E52*H52 -> 3175.5
F53: 160091 - CENTRO INTEGRADO DE TELEMATICA DO EXERCITO | G53: BRASÍLIA/DF | H53: 10 | I53: =E52*H53 -> 211.7
F54: 195006 - CIA DE DESENV. DO VALE DO SAO FRANCISCO-DF | G54: BRASÍLIA/DF | H54: 20 | I54: =E52*H54 -> 423.4
A55: 21 | B55: Material | C55: 418691-Interruptor | D55: Unidade | E55: 5.39 | F55: 160058 - 32 GRUPO DE ARTILHARIA DE CAMPANHA-MEX/DF | G55: BRASÍLIA/DF | H55: 150 | I55: =E55*H55 -> 808.5
F56: 160083 - ESTABELC.GEN GUSTAVO CORDEIRO FARIAS-MEX-DF | G56: BRASÍLIA/DF | H56: 10 | I56: =E55*H56 -> 53.9
F57: 195006 - CIA DE DESENV. DO VALE DO SAO FRANCISCO-DF | G57: BRASÍLIA/DF | H57: 20 | I57: =E55*H57 -> 107.8
A58: 22 | B58: Material | C58: 240093-Interruptor | D58: Unidade | E58: 4.52 | F58: 160058 - 32 GRUPO DE ARTILHARIA DE CAMPANHA-MEX/DF | G58: BRASÍLIA/DF | H58: 150 | I58: =E58*H58 -> 678
F59: 195006 - CIA DE DESENV. DO VALE DO SAO FRANCISCO-DF | G59: BRASÍLIA/DF | H59: 10 | I59: =E58*H59 -> 45.2
A60: 23 | B60: Material | C60: 212380-Interruptor | D60: Unidade | E60: 8.37 | F60: 160058 - 32 GRUPO DE ARTILHARIA DE CAMPANHA-MEX/DF | G60: BRASÍLIA/DF | H60: 150 | I60: =E60*H60 -> 1255.5
F61: 195006 - CIA DE DESENV. DO VALE DO SAO FRANCISCO-DF | G61: BRASÍLIA/DF | H61: 180 | I61: =E60*H61 -> 1506.6
A62: 24 | B62: Material | C62: 212387-Interruptor | D62: Unidade | E62: 8.05 | F62: 160058 - 32 GRUPO DE ARTILHARIA DE CAMPANHA-MEX/DF | G62: BRASÍLIA/DF | H62: 150 | I62: =E62*H62 -> 1207.5
F63: 195006 - CIA DE DESENV. DO VALE DO SAO FRANCISCO-DF | G63: BRASÍLIA/DF | H63: 180 | I63: =E62*H63 -> 1449
A64: 25 | B64: Material | C64: 331656-Interruptor | D64: Unidade | E64: 14.9 | F64: 160058 - 32 GRUPO DE ARTILHARIA DE CAMPANHA-MEX/DF | G64: BRASÍLIA/DF | H64: 150 | I64: =E64*H64 -> 2235
F65: 195006 - CIA DE DESENV. DO VALE DO SAO FRANCISCO-DF | G65: BRASÍLIA/DF | H65: 120 | I65: =E64*H65 -> 1788
A66: 26 | B66: Material | C66: 352736-Cabo elétrico flexível | D66: Bobina 500,00 M | E66: 11.23 | F66: 160058 - 32 GRUPO DE ARTILHARIA DE CAMPANHA-MEX/DF | G66: BRASÍLIA/DF | H66: 50 | I66: =E66*H66 -> 561.5
F67: 160083 - ESTABELC.GEN GUSTAVO CORDEIRO FARIAS-MEX-DF | G67: BRASÍLIA/DF | H67: 10 | I67: =E66*H67 -> 112.3
F68: 195006 - CIA DE DESENV. DO VALE DO SAO FRANCISCO-DF | G68: BRASÍLIA/DF | H68: 2000 | I68: =E66*H68 -> 22460
A69: 27 | B69: Material | C69: 394031-Cabo elétrico flexível | D69: Rolo 100,00 M | E69: 62.93 | F69: 160058 - 32 GRUPO DE ARTILHARIA DE CAMPANHA-MEX/DF | G69: BRASÍLIA/DF | H69: 50 | I69: =E69*H69 -> 3146.5
F70: 160083 - ESTABELC.GEN GUSTAVO CORDEIRO FARIAS-MEX-DF | G70: BRASÍLIA/DF | H70: 5 | I70: =E69*H70 -> 314.65
F71: 195006 - CIA DE DESENV. DO VALE DO SAO FRANCISCO-DF | G71: BRASÍLIA/DF | H71: 8 | I71: =E69*H71 -> 503.44
A72: 28 | B72: Material | C72: 342939-Cabo elétrico flexível | D72: Rolo 100,00 M | E72: 74.96 | F72: 160058 - 32 GRUPO DE ARTILHARIA DE CAMPANHA-MEX/DF | G72: BRASÍLIA/DF | H72: 50 | I72: =E72*H72 -> 3748
F73: 160083 - ESTABELC.GEN GUSTAVO CORDEIRO FARIAS-MEX-DF | G73: BRASÍLIA/DF | H73: 20 | I73: =E72*H73 -> 1499.2
F74: 195006 - CIA DE DESENV. DO VALE DO SAO FRANCISCO-DF | G74: BRASÍLIA/DF | H74: 10 | I74: =E72*H74 -> 749.6
A75: 29 | B75: Material | C75: 409524-Cabo elétrico flexível | D75: Rolo 100,00 M | E75: 190 | F75: 160058 - 32 GRUPO DE ARTILHARIA DE CAMPANHA-MEX/DF | G75: BRASÍLIA/DF | H75: 50 | I75: =E75*H75 -> 9500
F76: 195006 - CIA DE DESENV. DO VALE DO SAO FRANCISCO-DF | G76: BRASÍLIA/DF | H76: 8 | I76: =E75*H76 -> 1520
A77: 30 | B77: Material | C77: 332928-Cabo elétrico flexível | D77: Metro | E77: 2.68 | F77: 160058 - 32 GRUPO DE ARTILHARIA DE CAMPANHA-MEX/DF | G77: BRASÍLIA/DF | H77: 1000 | I77: =E77*H77 -> 2680
F78: 195006 - CIA DE DESENV. DO VALE DO SAO FRANCISCO-DF | G78: BRASÍLIA/DF | H78: 1000 | I78: =E77*H78 -> 2680
A79: 31 | B79: Material | C79: 389765-Cabo rede computador | D79: Caixa 305,00 M | E79: 357.85 | F79: 160058 - 32 GRUPO DE ARTILHARIA DE CAMPANHA-MEX/DF | G79: BRASÍLIA/DF | H79: 50 | I79: =E79*H79 -> 17892.5
F80: 160083 - ESTABELC.GEN GUSTAVO CORDEIRO FARIAS-MEX-DF | G80: BRASÍLIA/DF | H80: 4 | I80: =E79*H80 -> 1431.4
F81: 195006 - CIA DE DESENV. DO VALE DO SAO FRANCISCO-DF | G81: BRASÍLIA/DF | H81: 10 | I81: =E79*H81 -> 3578.5
A82: 32 | B82: Material | C82: 239472-Fio eletrico | D82: Rolo 100,00 M | E82: 95 | F82: 160058 - 32 GRUPO DE ARTILHARIA DE CAMPANHA-MEX/DF | G82: BRASÍLIA/DF | H82: 50 | I82: =E82*H82 -> 4750
F83: 160083 - ESTABELC.GEN GUSTAVO CORDEIRO FARIAS-MEX-DF | G83: BRASÍLIA/DF | H83: 5 | I83: =E82*H83 -> 475
F84: 195006 - CIA DE DESENV. DO VALE DO SAO FRANCISCO-DF | G84: BRASÍLIA/DF | H84: 12 | I84: =E82*H84 -> 1140
A85: 33 | B85: Material | C85: 238853-Fio eletrico | D85: Rolo 100,00 M | E85: 409.9 | F85: 160058 - 32 GRUPO DE ARTILHARIA DE CAMPANHA-MEX/DF | G85: BRASÍLIA/DF | H85: 50 | I85: =E85*H85 -> 20495
F86: 195006 - CIA DE DESENV. DO VALE DO SAO FRANCISCO-DF | G86: BRASÍLIA/DF | H86: 12 | I86: =E85*H86 -> 4918.8
A87: 34 | B87: Material | C87: 224596-Fio eletrico | D87: Rolo 100,00 M | E87: 56 | F87: 160058 - 32 GRUPO DE ARTILHARIA DE CAMPANHA-MEX/DF | G87: BRASÍLIA/DF | H87: 100 | I87: =E87*H87 -> 5600
F88: 160083 - ESTABELC.GEN GUSTAVO CORDEIRO FARIAS-MEX-DF | G88: BRASÍLIA/DF | H88: 10 | I88: =E87*H88 -> 560
F89: 195006 - CIA DE DESENV. DO VALE DO SAO FRANCISCO-DF | G89: BRASÍLIA/DF | H89: 180 | I89: =E87*H89 -> 10080
A90: 35 | B90: Material | C90: 224597-Fio eletrico | D90: Rolo 100,00 M | E90: 144 | F90: 160058 - 32 GRUPO DE ARTILHARIA DE CAMPANHA-MEX/DF | G90: BRASÍLIA/DF | H90: 50 | I90: =E90*H90 -> 7200
F91: 195006 - CIA DE DESENV. DO VALE DO SAO FRANCISCO-DF | G91: BRASÍLIA/DF | H91: 24 | I91: =E90*H91 -> 3456
A92: 36 | B92: Material | C92: 261260-Lâmpada fluorescente compacta | D92: Unidade | E92: 9.21 | F92: 160058 - 32 GRUPO DE ARTILHARIA DE CAMPANHA-MEX/DF | G92: BRASÍLIA/DF | H92: 150 | I92: =E92*H92 -> 1381.5
F93: 195006 - CIA DE DESENV. DO VALE DO SAO FRANCISCO-DF | G93: BRASÍLIA/DF | H93: 180 | I93: =E92*H93 -> 1657.8
A94: 37 | B94: Material | C94: 245112-Lâmpada fluorescente compacta | D94: Unidade | E94: 15.54 | F94: 160058 - 32 GRUPO DE ARTILHARIA DE CAMPANHA-MEX/DF | G94: BRASÍLIA/DF | H94: 150 | I94: =E94*H94 -> 2331
F95: 195006 - CIA DE DESENV. DO VALE DO SAO FRANCISCO-DF | G95: BRASÍLIA/DF | H95: 60 | I95: =E94*H95 -> 932.4
A96: 38 | B96: Material | C96: 349219-Lâmpada fluorescente compacta | D96: Unidade | E96: 27.7 | F96: 160058 - 32 GRUPO DE ARTILHARIA DE CAMPANHA-MEX/DF | G96: BRASÍLIA/DF | H96: 150 | I96: =E96*H96 -> 4155
F97: 160083 - ESTABELC.GEN GUSTAVO CORDEIRO FARIAS-MEX-DF | G97: BRASÍLIA/DF | H97: 50 | I97: =E96*H97 -> 1385
F98: 195006 - CIA DE DESENV. DO VALE DO SAO FRANCISCO-DF | G98: BRASÍLIA/DF | H98: 120 | I98: =E96*H98 -> 3324
A99: 39 | B99: Material | C99: 234117-Lâmpada fluorescente | D99: Unidade | E99: 31.87 | F99: 160058 - 32 GRUPO DE ARTILHARIA DE CAMPANHA-MEX/DF | G99: BRASÍLIA/DF | H99: 150 | I99: =E99*H99 -> 4780.5
F100: 195006 - CIA DE DESENV. DO VALE DO SAO FRANCISCO-DF | G100: BRASÍLIA/DF | H100: 500 | I100: =E99*H100 -> 15935
A101: 40 | B101: Material | C101: 256287-Lâmpada fluorescente | D101: Unidade | E101: 9.56 | F101: 160058 - 32 GRUPO DE ARTILHARIA DE CAMPANHA-MEX/DF | G101: BRASÍLIA/DF | H101: 150 | I101: =E101*H101 -> 1434
F102: 195006 - CIA DE DESENV. DO VALE DO SAO FRANCISCO-DF | G102: BRASÍLIA/DF | H102: 500 | I102: =E101*H102 -> 4780
A103: 41 | B103: Material | C103: 232988-Lâmpada fluorescente | D103: Unidade | E103: 7.04 | F103: 160058 - 32 GRUPO DE ARTILHARIA DE CAMPANHA-MEX/DF | G103: BRASÍLIA/DF | H103: 150 | I103: =E103*H103 -> 1056
F104: 195006 - CIA DE DESENV. DO VALE DO SAO FRANCISCO-DF | G104: BRASÍLIA/DF | H104: 500 | I104: =E103*H104 -> 3520
A105: 42 | B105: Material | C105: 150260-Luminária | D105: Unidade | E105: 60.62 | F105: 160058 - 32 GRUPO DE ARTILHARIA DE CAMPANHA-MEX/DF | G105: BRASÍLIA/DF | H105: 150 | I105: =E105*H105 -> 9093
F106: 195006 - CIA DE DESENV. DO VALE DO SAO FRANCISCO-DF | G106: BRASÍLIA/DF | H106: 10 | I106: =E105*H106 -> 606.2
A107: 43 | B107: Material | C107: 441137-Lâmpada led | D107: Unidade | E107: 44.73 | F107: 160058 - 32 GRUPO DE ARTILHARIA DE CAMPANHA-MEX/DF | G107: BRASÍLIA/DF | H107: 150 | I107: =E107*H107 -> 6709.5
F108: 160083 - ESTABELC.GEN GUSTAVO CORDEIRO FARIAS-MEX-DF | G108: BRASÍLIA/DF | H108: 30 | I108: =E107*H108 -> 1341.9
F109: 195006 - CIA DE DESENV. DO VALE DO SAO FRANCISCO-DF | G109: BRASÍLIA/DF | H109: 200 | I109: =E107*H109 -> 8946
A110: 44 | B110: Material | C110: 435130-Lâmpada led | D110: Unidade | E110: 7.34 | F110: 160058 - 32 GRUPO DE ARTILHARIA DE CAMPANHA-MEX/DF | G110: BRASÍLIA/DF | H110: 150 | I110: =E110*H110 -> 1101
F111: 195006 - CIA DE DESENV. DO VALE DO SAO FRANCISCO-DF | G111: BRASÍLIA/DF | H111: 50 | I111: =E110*H111 -> 367
A112: 45 | B112: Material | C112: 446038-Lâmpada led | D112: Unidade | E112: 6.42 | F112: 160058 - 32 GRUPO DE ARTILHARIA DE CAMPANHA-MEX/DF | G112: BRASÍLIA/DF | H112: 150 | I112: =E112*H112 -> 963
F113: 195006 - CIA DE DESENV. DO VALE DO SAO FRANCISCO-DF | G113: BRASÍLIA/DF | H113: 200 | I113: =E112*H113 -> 1284
A114: 46 | B114: Material | C114: 437224-Lâmpada led | D114: Unidade | E114: 13 | F114: 160058 - 32 GRUPO DE ARTILHARIA DE CAMPANHA-MEX/DF | G114: BRASÍLIA/DF | H114: 150 | I114: =E114*H114 -> 1950
F115: 160083 - ESTABELC.GEN GUSTAVO CORDEIRO FARIAS-MEX-DF | G115: BRASÍLIA/DF | H115: 50 | I115: =E114*H115 -> 650
F116: 195006 - CIA DE DESENV. DO VALE DO SAO FRANCISCO-DF | G116: BRASÍLIA/DF | H116: 840 | I116: =E114*H116 -> 10920
A117: 47 | B117: Material | C117: 399271-Luz emergência | D117: Unidade | E117: 11.61 | F117: 160058 - 32 GRUPO DE ARTILHARIA DE CAMPANHA-MEX/DF | G117: BRASÍLIA/DF | H117: 150 | I117: =E117*H117 -> 1741.5
F118: 160083 - ESTABELC.GEN GUSTAVO CORDEIRO FARIAS-MEX-DF | G118: BRASÍLIA/DF | H118: 30 | I118: =E117*H118 -> 348.3
F119: 195006 - CIA DE DESENV. DO VALE DO SAO FRANCISCO-DF | G119: BRASÍLIA/DF | H119: 60 | I119: =E117*H119 -> 696.6
A120: 48 | B120: Material | C120: 446036-Lâmpada led | D120: Unidade | E120: 8.66 | F120: 160058 - 32 GRUPO DE ARTILHARIA DE CAMPANHA-MEX/DF | G120: BRASÍLIA/DF | H120: 150 | I120: =E120*H120 -> 1299
F121: 195006 - CIA DE DESENV. DO VALE DO SAO FRANCISCO-DF | G121: BRASÍLIA/DF | H121: 50 | I121: =E120*H121 -> 433
A122: 49 | B122: Material | C122: 441015-Lâmpada led | D122: Unidade | E122: 53.94 | F122: 160058 - 32 GRUPO DE ARTILHARIA DE CAMPANHA-MEX/DF | G122: BRASÍLIA/DF | H122: 150 | I122: =E122*H122 -> 8091
F123: 195006 - CIA DE DESENV. DO VALE DO SAO FRANCISCO-DF | G123: BRASÍLIA/DF | H123: 840 | I123: =E122*H123 -> 45309.6
A124: 50 | B124: Material | C124: 437582-Lâmpada led | D124: Unidade | E124: 9.4 | F124: 160058 - 32 GRUPO DE ARTILHARIA DE CAMPANHA-MEX/DF | G124: BRASÍLIA/DF | H124: 150 | I124: =E124*H124 -> 1410
F125: 160091 - CENTRO INTEGRADO DE TELEMATICA DO EXERCITO | G125: BRASÍLIA/DF | H125: 50 | I125: =E124*H125 -> 470
F126: 195006 - CIA DE DESENV. DO VALE DO SAO FRANCISCO-DF | G126: BRASÍLIA/DF | H126: 840 | I126: =E124*H126 -> 7896
A127: 51 | B127: Material | C127: 434161-Refletor | D127: Unidade | E127: 75 | F127: 160058 - 32 GRUPO DE ARTILHARIA DE CAMPANHA-MEX/DF | G127: BRASÍLIA/DF | H127: 150 | I127: =E127*H127 -> 11250
F128: 160083 - ESTABELC.GEN GUSTAVO CORDEIRO FARIAS-MEX-DF | G128: BRASÍLIA/DF | H128: 10 | I128: =E127*H128 -> 750
F129: 160091 - CENTRO INTEGRADO DE TELEMATICA DO EXERCITO | G129: BRASÍLIA/DF | H129: 50 | I129: =E127*H129 -> 3750
F130: 195006 - CIA DE DESENV. DO VALE DO SAO FRANCISCO-DF | G130: BRASÍLIA/DF | H130: 50 | I130: =E127*H130 -> 3750
A131: 52 | B131: Material | C131: 360131-Refletor | D131: Unidade | E131: 40.57 | F131: 160058 - 32 GRUPO DE ARTILHARIA DE CAMPANHA-MEX/DF | G131: BRASÍLIA/DF | H131: 150 | I131: =E131*H131 -> 6085.5
F132: 195006 - CIA DE DESENV. DO VALE DO SAO FRANCISCO-DF | G132: BRASÍLIA/DF | H132: 50 | I132: =E131*H132 -> 2028.5
A133: 53 | B133: Material | C133: 434160-Refletor | D133: Unidade | E133: 38.9 | F133: 160058 - 32 GRUPO DE ARTILHARIA DE CAMPANHA-MEX/DF | G133: BRASÍLIA/DF | H133: 150 | I133: =E133*H133 -> 5835
F134: 160083 - ESTABELC.GEN GUSTAVO CORDEIRO FARIAS-MEX-DF | G134: BRASÍLIA/DF | H134: 10 | I134: =E133*H134 -> 389
F135: 195006 - CIA DE DESENV. DO VALE DO SAO FRANCISCO-DF | G135: BRASÍLIA/DF | H135: 50 | I135: =E133*H135 -> 1945
A136: 54 | B136: Material | C136: 434162-Refletor | D136: Unidade | E136: 193.33 | F136: 160058 - 32 GRUPO DE ARTILHARIA DE CAMPANHA-MEX/DF | G136: BRASÍLIA/DF | H136: 150 | I136: =E136*H136 -> 28999.5
F137: 195006 - CIA DE DESENV. DO VALE DO SAO FRANCISCO-DF | G137: BRASÍLIA/DF | H137: 50 | I137: =E136*H137 -> 9666.5
A138: 55 | B138: Material | C138: 364621-Soquete lâmpada fluorescente | D138: Unidade | E138: 3.52 | F138: 160058 - 32 GRUPO DE ARTILHARIA DE CAMPANHA-MEX/DF | G138: BRASÍLIA/DF | H138: 100 | I138: =E138*H138 -> 352
F139: 195006 - CIA DE DESENV. DO VALE DO SAO FRANCISCO-DF | G139: BRASÍLIA/DF | H139: 1000 | I139: =E138*H139 -> 3520
A140: 56 | B140: Material | C140: 375077-Tomada | D140: Unidade | E140: 23 | F140: 160058 - 32 GRUPO DE ARTILHARIA DE CAMPANHA-MEX/DF | G140: BRASÍLIA/DF | H140: 100 | I140: =E140*H140 -> 2300
F141: 160083 - ESTABELC.GEN GUSTAVO CORDEIRO FARIAS-MEX-DF | G141: BRASÍLIA/DF | H141: 50 | I141: =E140*H141 -> 1150
F142: 195006 - CIA DE DESENV. DO VALE DO SAO FRANCISCO-DF | G142: BRASÍLIA/DF | H142: 400 | I142: =E140*H142 -> 9200
A143: 57 | B143: Material | C143: 367204-Limpador contato elétrico,eletrônico | D143: Unidade | E143: 17.9 | F143: 160058 - 32 GRUPO DE ARTILHARIA DE CAMPANHA-MEX/DF | G143: BRASÍLIA/DF | H143: 50 | I143: =E143*H143 -> 895
F144: 195006 - CIA DE DESENV. DO VALE DO SAO FRANCISCO-DF | G144: BRASÍLIA/DF | H144: 5 | I144: =E143*H144 -> 89.5
A145: 58 | B145: Material | C145: 421088-Filtro linha | D145: Unidade | E145: 22.54 | F145: 160058 - 32 GRUPO DE ARTILHARIA DE CAMPANHA-MEX/DF | G145: BRASÍLIA/DF | H145: 50 | I145: =E145*H145 -> 1127
F146: 160091 - CENTRO INTEGRADO DE TELEMATICA DO EXERCITO | G146: BRASÍLIA/DF | H146: 20 | I146: =E145*H146 -> 450.8
F147: 195006 - CIA DE DESENV. DO VALE DO SAO FRANCISCO-DF | G147: BRASÍLIA/DF | H147: 50 | I147: =E145*H147 -> 1127
A148: 59 | B148: Material | C148: 291227-Filtro linha | D148: Unidade | E148: 19.52 | F148: 160058 - 32 GRUPO DE ARTILHARIA DE CAMPANHA-MEX/DF | G148: BRASÍLIA/DF | H148: 50 | I148: =E148*H148 -> 976
F149: 160091 - CENTRO INTEGRADO DE TELEMATICA DO EXERCITO | G149: BRASÍLIA/DF | H149: 30 | I149: =E148*H149 -> 585.6
F150: 195006 - CIA DE DESENV. DO VALE DO SAO FRANCISCO-DF | G150: BRASÍLIA/DF | H150: 72 | I150: =E148*H150 -> 1405.44
A151: 60 | B151: Material | C151: 64831-Reator lâmpada | D151: Unidade | E151: 13.85 | F151: 160058 - 32 GRUPO DE ARTILHARIA DE CAMPANHA-MEX/DF | G151: BRASÍLIA/DF | H151: 50 | I151: =E151*H151 -> 692.5
F152: 195006 - CIA DE DESENV. DO VALE DO SAO FRANCISCO-DF | G152: BRASÍLIA/DF | H152: 180 | I152: =E151*H152 -> 2493
A153: 61 | B153: Material | C153: 240105-Reator lâmpada | D153: Unidade | E153: 84.55 | F153: 160058 - 32 GRUPO DE ARTILHARIA DE CAMPANHA-MEX/DF | G153: BRASÍLIA/DF | H153: 50 | I153: =E153*H153 -> 4227.5
F154: 195006 - CIA DE DESENV. DO VALE DO SAO FRANCISCO-DF | G154: BRASÍLIA/DF | H154: 300 | I154: =E153*H154 -> 25365
A155: 62 | B155: Material | C155: 418057-Reator lâmpada fluorescente | D155: Unidade | E155: 11 | F155: 160058 - 32 GRUPO DE ARTILHARIA DE CAMPANHA-MEX/DF | G155: BRASÍLIA/DF | H155: 50 | I155: =E155*H155 -> 550
F156: 195006 - CIA DE DESENV. DO VALE DO SAO FRANCISCO-DF | G156: BRASÍLIA/DF | H156: 180 | I156: =E155*H156 -> 1980
A157: 63 | B157: Material | C157: 405815-Reator lâmpada fluorescente | D157: Unidade | E157: 16.54 | F157: 160058 - 32 GRUPO DE ARTILHARIA DE CAMPANHA-MEX/DF | G157: BRASÍLIA/DF | H157: 50 | I157: =E157*H157 -> 827
F158: 195006 - CIA DE DESENV. DO VALE DO SAO FRANCISCO-DF | G158: BRASÍLIA/DF | H158: 340 | I158: =E157*H158 -> 5623.6
A159: 64 | B159: Material | C159: 405814-Reator lâmpada fluorescente | D159: Unidade | E159: 17.79 | F159: 160058 - 32 GRUPO DE ARTILHARIA DE CAMPANHA-MEX/DF | G159: BRASÍLIA/DF | H159: 50 | I159: =E159*H159 -> 889.5
F160: 195006 - CIA DE DESENV. DO VALE DO SAO FRANCISCO-DF | G160: BRASÍLIA/DF | H160: 340 | I160: =E159*H160 -> 6048.6
A161: 65 | B161: Material | C161: 234935-Receptáculo lâmpada | D161: Unidade | E161: 1.57 | F161: 160058 - 32 GRUPO DE ARTILHARIA DE CAMPANHA-MEX/DF | G161: BRASÍLIA/DF | H161: 50 | I161: =E161*H161 -> 78.5
F162: 195006 - CIA DE DESENV. DO VALE DO SAO FRANCISCO-DF | G162: BRASÍLIA/DF | H162: 1000 | I162: =E161*H162 -> 1570
A163: 66 | B163: Material | C163: 232601-Adesivo conexão hidráulica | D163: Frasco 175,00 G | E163: 10.1 | F163: 160058 - 32 GRUPO DE ARTILHARIA DE CAMPANHA-MEX/DF | G163: BRASÍLIA/DF | H163: 100 | I163: =E163*H163 -> 1010
F164: 160083 - ESTABELC.GEN GUSTAVO CORDEIRO FARIAS-MEX-DF | G164: BRASÍLIA/DF | H164: 10 | I164: =E163*H164 -> 101
F165: 160091 - CENTRO INTEGRADO DE TELEMATICA DO EXERCITO | G165: BRASÍLIA/DF | H165: 15 | I165: =E163*H165 -> 151.5
F166: 195006 - CIA DE DESENV. DO VALE DO SAO FRANCISCO-DF | G166: BRASÍLIA/DF | H166: 20 | I166: =E163*H166 -> 202
A167: 67 | B167: Material | C167: 243136-Conexão hidráulica | D167: Unidade | E167: 1.34 | F167: 160058 - 32 GRUPO DE ARTILHARIA DE CAMPANHA-MEX/DF | G167: BRASÍLIA/DF | H167: 150 | I167: =E167*H167 -> 201
F168: 195006 - CIA DE DESENV. DO VALE DO SAO FRANCISCO-DF | G168: BRASÍLIA/DF | H168: 50 | I168: =E167*H168 -> 67
A169: 68 | B169: Material | C169: 243137-Conexão hidráulica | D169: Unidade | E169: 1.55 | F169: 160058 - 32 GRUPO DE ARTILHARIA DE CAMPANHA-MEX/DF | G169: BRASÍLIA/DF | H169: 150 | I169: =E169*H169 -> 232.5
F170: 195006 - CIA DE DESENV. DO VALE DO SAO FRANCISCO-DF | G170: BRASÍLIA/DF | H170: 50 | I170: =E169*H170 -> 77.5
A171: 69 | B171: Material | C171: 346838-Tê - conexão para tubos e canos - soldável | D171: Unidade | E171: 2.52 | F171: 160058 - 32 GRUPO DE ARTILHARIA DE CAMPANHA-MEX/DF | G171: BRASÍLIA/DF | H171: 150 | I171: =E171*H171 -> 378
F172: 195006 - CIA DE DESENV. DO VALE DO SAO FRANCISCO-DF | G172: BRASÍLIA/DF | H172: 50 | I172: =E171*H172 -> 126
A173: 70 | B173: Material | C173: 346837-Tê - conexão para tubos e canos - soldável | D173: Unidade | E173: 3.68 | F173: 160058 - 32 GRUPO DE ARTILHARIA DE CAMPANHA-MEX/DF | G173: BRASÍLIA/DF | H173: 150 | I173: =E173*H173 -> 552
F174: 160091 - CENTRO INTEGRADO DE TELEMATICA DO EXERCITO | G174: BRASÍLIA/DF | H174: 30 | I174: =E173*H174 -> 110.4
F175: 195006 - CIA DE DESENV. DO VALE DO SAO FRANCISCO-DF | G175: BRASÍLIA/DF | H175: 50 | I175: =E173*H175 -> 184
A176: 71 | B176: Material | C176: 295430-Conexão hidráulica | D176: Unidade | E176: 1.22 | F176: 160058 - 32 GRUPO DE ARTILHARIA DE CAMPANHA-MEX/DF | G176: BRASÍLIA/DF | H176: 150 | I176: =E176*H176 -> 183
F177: 160083 - ESTABELC.GEN GUSTAVO CORDEIRO FARIAS-MEX-DF | G177: BRASÍLIA/DF | H177: 20 | I177: =E176*H177 -> 24.4
F178: 195006 - CIA DE DESENV. DO VALE DO SAO FRANCISCO-DF | G178: BRASÍLIA/DF | H178: 50 | I178: =E176*H178 -> 61
A179: 72 | B179: Material | C179: 290182-Conexão hidráulica | D179: Unidade | E179: 1.53 | F179: 160058 - 32 GRUPO DE ARTILHARIA DE CAMPANHA-MEX/DF | G179: BRASÍLIA/DF | H179: 150 | I179: =E179*H179 -> 229.5
F180: 160083 - ESTABELC.GEN GUSTAVO CORDEIRO FARIAS-MEX-DF | G180: BRASÍLIA/DF | H180: 50 | I180: =E179*H180 -> 76.5
F181: 195006 - CIA DE DESENV. DO VALE DO SAO FRANCISCO-DF | G181: BRASÍLIA/DF | H181: 50 | I181: =E179*H181 -> 76.5
A182: 73 | B182: Material | C182: 39144-Luva conexão | D182: Unidade | E182: 8.3 | F182: 160058 - 32 GRUPO DE ARTILHARIA DE CAMPANHA-MEX/DF | G182: BRASÍLIA/DF | H182: 150 | I182: =E182*H182 -> 1245
F183: 160083 - ESTABELC.GEN GUSTAVO CORDEIRO FARIAS-MEX-DF | G183: BRASÍLIA/DF | H183: 10 | I183: =E182*H183 -> 83
F184: 195006 - CIA DE DESENV. DO VALE DO SAO FRANCISCO-DF | G184: BRASÍLIA/DF | H184: 50 | I184: =E182*H184 -> 415
A185: 74 | B185: Material | C185: 227725-Luva conexão | D185: Unidade | E185: 2.81 | F185: 160058 - 32 GRUPO DE ARTILHARIA DE CAMPANHA-MEX/DF | G185: BRASÍLIA/DF | H185: 150 | I185: =E185*H185 -> 421.5
F186: 160083 - ESTABELC.GEN GUSTAVO CORDEIRO FARIAS-MEX-DF | G186: BRASÍLIA/DF | H186: 30 | I186: =E185*H186 -> 84.3
F187: 160091 - CENTRO INTEGRADO DE TELEMATICA DO EXERCITO | G187: BRASÍLIA/DF | H187: 20 | I187: =E185*H187 -> 56.2
F188: 195006 - CIA DE DESENV. DO VALE DO SAO FRANCISCO-DF | G188: BRASÍLIA/DF | H188: 50 | I188: =E185*H188 -> 140.5
A189: 75 | B189: Material | C189: 301441-Engate hidráulico | D189: Unidade | E189: 2.35 | F189: 160058 - 32 GRUPO DE ARTILHARIA DE CAMPANHA-MEX/DF | G189: BRASÍLIA/DF | H189: 150 | I189: =E189*H189 -> 352.5
F190: 195006 - CIA DE DESENV. DO VALE DO SAO FRANCISCO-DF | G190: BRASÍLIA/DF | H190: 50 | I190: =E189*H190 -> 117.5
A191: 76 | B191: Material | C191: 225707-Fita veda rosca | D191: Unidade | E191: 4.65 | F191: 160058 - 32 GRUPO DE ARTILHARIA DE CAMPANHA-MEX/DF | G191: BRASÍLIA/DF | H191: 150 | I191: =E191*H191 -> 697.5
F192: 160083 - ESTABELC.GEN GUSTAVO CORDEIRO FARIAS-MEX-DF | G192: BRASÍLIA/DF | H192: 20 | I192: =E191*H192 -> 93
F193: 195006 - CIA DE DESENV. DO VALE DO SAO FRANCISCO-DF | G193: BRASÍLIA/DF | H193: 50 | I193: =E191*H193 -> 232.5
A194: 77 | B194: Material | C194: 249993-Tubo pvc soldável | D194: Unidade | E194: 42.66 | F194: 160058 - 32 GRUPO DE ARTILHARIA DE CAMPANHA-MEX/DF | G194: BRASÍLIA/DF | H194: 150 | I194: =E194*H194 -> 6399
F195: 195006 - CIA DE DESENV. DO VALE DO SAO FRANCISCO-DF | G195: BRASÍLIA/DF | H195: 10 | I195: =E194*H195 -> 426.6
A196: 78 | B196: Material | C196: 396867-Tubo pvc soldável | D196: Unidade | E196: 24.8 | F196: 160058 - 32 GRUPO DE ARTILHARIA DE CAMPANHA-MEX/DF | G196: BRASÍLIA/DF | H196: 150 | I196: =E196*H196 -> 3720
F197: 160083 - ESTABELC.GEN GUSTAVO CORDEIRO FARIAS-MEX-DF | G197: BRASÍLIA/DF | H197: 10 | I197: =E196*H197 -> 248
F198: 195006 - CIA DE DESENV. DO VALE DO SAO FRANCISCO-DF | G198: BRASÍLIA/DF | H198: 10 | I198: =E196*H198 -> 248
A199: 79 | B199: Material | C199: 240480-Tubo pvc soldável | D199: Unidade | E199: 10.68 | F199: 160058 - 32 GRUPO DE ARTILHARIA DE CAMPANHA-MEX/DF | G199: BRASÍLIA/DF | H199: 150 | I199: =E199*H199 -> 1602
F200: 160083 - ESTABELC.GEN GUSTAVO CORDEIRO FARIAS-MEX-DF | G200: BRASÍLIA/DF | H200: 20 | I200: =E199*H200 -> 213.6
F201: 160091 - CENTRO INTEGRADO DE TELEMATICA DO EXERCITO | G201: BRASÍLIA/DF | H201: 10 | I201: =E199*H201 -> 106.8
F202: 195006 - CIA DE DESENV. DO VALE DO SAO FRANCISCO-DF | G202: BRASÍLIA/DF | H202: 10 | I202: =E199*H202 -> 106.8
... 171 more rows
